Workbook

Sheet Sheet1
A1: t= | B1: 0.128 | D1: dt= | E1: =0.001 -> 0.001
A2: t+dt=tp | B2: =t+dt -> 0.129
A3: t-dt=tm | B3: =t-dt -> 0.127
C4: =EXP(-5*t)*(SIN(2*t)-t/2*EXP(-t)*COS(2*t)) -> 0.1047927573 | F4: =EXP(-5*tp)*(SIN(2*tp)-tp/2*EXP(-tp)*COS(2*tp)) -> 0.1051055834 | I4: =EXP(-5*tm)*(SIN(2*tm)-tm/2*EXP(-tm)*COS(2*tm)) -> 0.1044743611 | L4: =(F4-I4)/2/dt -> 0.3156111703
B5: x(t)= | C5: =EXP(-5*t)*(SIN(2*t)-1/2*EXP(-t)*COS(2*t)) -> -0.0908929714 | E5: x(t+td)= | F5: =EXP(-5*tp)*(SIN(2*tp)-1/2*EXP(-tp)*COS(2*tp)) -> -0.08908438071 | H5: x(t-td)= | I5: =EXP(-5*tm)*(SIN(2*tm)-1/2*EXP(-tm)*COS(2*tm)) -> -0.09271755129 | K5: dx/dt= | L5: =(F5-I5)/2/dt -> 1.816585289 | N5: Kırmızı kutular eşleşmeli.
C6: =EXP(-5*t)*(COS(2*t)-SIN(2*t)) -> 0.3765909947 | F6: =EXP(-5*tp)*(COS(2*tp)-SIN(2*tp)) -> 0.3734311599 | I6: =EXP(-5*tm)*(COS(2*tm)-SIN(2*tm)) -> 0.3797716106 | L6: =(F6-I6)/2/dt -> -3.170225347
C7: =EXP(-5*t)*SIN(2*t) -> 0.1335172679 | F7: =EXP(-5*tp)*SIN(2*tp) -> 0.1338662096 | I7: =EXP(-5*tm)*SIN(2*tm) -> 0.1331609279 | L7: =(F7-I7)/2/dt -> 0.3526408119
A9: Yeşil kutular doldurulup düğmeye basılmalı.
C11: -6 | D11: 1 | E11: 2 | F11: 2 | I11: =t*EXP(-6*t)*SIN(2*t) -> 0.01503687928 | L11: =MMULT(C11:F14,C4:C7) -> 0.3005670102 | O11: =L11+I11 -> 0.3156038895
B12: A= | C12: 0 | D12: -6 | E12: 2 | F12: 3 | H12: f= | I12: =EXP(-6*t)*SIN(2*t) -> 0.1174756193 | K12: Ax= | L12: 1.699091622 | N12: Ax+f= | O12: =L12+I12 -> 1.816567241
C13: 0 | D13: 0 | E13: -7 | F13: -4 | I13: =0 -> 0 | L13: -3.170206035 | O13: =L13+I13 -> -3.170206035
C14: 0 | D14: 0 | E14: 2 | F14: -3 | I14: =0 -> 0 | L14: 0.3526301858 | O14: =L14+I14 -> 0.3526301858
B17: t | C17: x1 | D17: x2 | E17: x3 | F17: x4
B18: 0 | C18: =EXP(-5*tt)*(SIN(2*tt)-tt/2*EXP(-tt)*COS(2*tt)) -> 0 | D18: =EXP(-5*tt)*(SIN(2*tt)-1/2*EXP(-tt)*COS(2*tt)) -> -0.5 | E18: =EXP(-5*tt)*(COS(2*tt)-SIN(2*tt)) -> 1 | F18: =EXP(-5*tt)*SIN(2*tt) -> 0
B19: =B18+PI()/64 -> 0.04908738521 | C19: =EXP(-5*tt)*(SIN(2*tt)-tt/2*EXP(-tt)*COS(2*tt)) -> 0.0584907326 | D19: =EXP(-5*tt)*(SIN(2*tt)-1/2*EXP(-tt)*COS(2*tt)) -> -0.2939645565 | E19: =EXP(-5*tt)*(COS(2*tt)-SIN(2*tt)) -> 0.7019103914 | F19: =EXP(-5*tt)*SIN(2*tt) -> 0.07668494759
B20: 0.09817477042 | C20: =EXP(-5*tt)*(SIN(2*tt)-tt/2*EXP(-tt)*COS(2*tt)) -> 0.09270004816 | D20: =EXP(-5*tt)*(SIN(2*tt)-1/2*EXP(-tt)*COS(2*tt)) -> -0.1526836788 | E20: =EXP(-5*tt)*(COS(2*tt)-SIN(2*tt)) -> 0.4809170352 | F20: =EXP(-5*tt)*SIN(2*tt) -> 0.1194130855
B21: 0.1472621556 | C21: =EXP(-5*tt)*(SIN(2*tt)-tt/2*EXP(-tt)*COS(2*tt)) -> 0.1098891599 | D21: =EXP(-5*tt)*(SIN(2*tt)-1/2*EXP(-tt)*COS(2*tt)) -> -0.05874267006 | E21: =EXP(-5*tt)*(COS(2*tt)-SIN(2*tt)) -> 0.319246292 | F21: =EXP(-5*tt)*SIN(2*tt) -> 0.1390107557
B22: 0.1963495408 | C22: =EXP(-5*tt)*(SIN(2*tt)-tt/2*EXP(-tt)*COS(2*tt)) -> 0.1154507706 | D22: =EXP(-5*tt)*(SIN(2*tt)-1/2*EXP(-tt)*COS(2*tt)) -> 0.001159933165 | E22: =EXP(-5*tt)*(COS(2*tt)-SIN(2*tt)) -> 0.2027622248 | F22: =EXP(-5*tt)*SIN(2*tt) -> 0.1433745441
B23: 0.2454369261 | C23: =EXP(-5*tt)*(SIN(2*tt)-tt/2*EXP(-tt)*COS(2*tt)) -> 0.1133550017 | D23: =EXP(-5*tt)*(SIN(2*tt)-1/2*EXP(-tt)*COS(2*tt)) -> 0.03705159096 | E23: =EXP(-5*tt)*(COS(2*tt)-SIN(2*tt)) -> 0.1203315738 | F23: =EXP(-5*tt)*SIN(2*tt) -> 0.1381742318
B24: 0.2945243113 | C24: =EXP(-5*tt)*(SIN(2*tt)-tt/2*EXP(-tt)*COS(2*tt)) -> 0.1064894517 | D24: =EXP(-5*tt)*(SIN(2*tt)-1/2*EXP(-tt)*COS(2*tt)) -> 0.05638956551 | E24: =EXP(-5*tt)*(COS(2*tt)-SIN(2*tt)) -> 0.06327021461 | F24: =EXP(-5*tt)*SIN(2*tt) -> 0.127405317
B25: 0.3436116965 | C25: =EXP(-5*tt)*(SIN(2*tt)-tt/2*EXP(-tt)*COS(2*tt)) -> 0.0969205057 | D25: =EXP(-5*tt)*(SIN(2*tt)-1/2*EXP(-tt)*COS(2*tt)) -> 0.06463971065 | E25: =EXP(-5*tt)*(COS(2*tt)-SIN(2*tt)) -> 0.02486988099 | F25: =EXP(-5*tt)*SIN(2*tt) -> 0.1138191291
B26: 0.3926990817 | C26: =EXP(-5*tt)*(SIN(2*tt)-tt/2*EXP(-tt)*COS(2*tt)) -> 0.08609510777 | D26: =EXP(-5*tt)*(SIN(2*tt)-1/2*EXP(-tt)*COS(2*tt)) -> 0.06574453304 | E26: =EXP(-5*tt)*(COS(2*tt)-SIN(2*tt)) -> 1.558385895e-17 | F26: =EXP(-5*tt)*SIN(2*tt) -> 0.09925440289
B27: 0.4417864669 | C27: =EXP(-5*tt)*(SIN(2*tt)-tt/2*EXP(-tt)*COS(2*tt)) -> 0.07499686872 | D27: =EXP(-5*tt)*(SIN(2*tt)-1/2*EXP(-tt)*COS(2*tt)) -> 0.0624961094 | E27: =EXP(-5*tt)*(COS(2*tt)-SIN(2*tt)) -> -0.01522263737 | F27: =EXP(-5*tt)*SIN(2*tt) -> 0.08489033415
B28: 0.4908738521 | C28: =EXP(-5*tt)*(SIN(2*tt)-tt/2*EXP(-tt)*COS(2*tt)) -> 0.06426674298 | D28: =EXP(-5*tt)*(SIN(2*tt)-1/2*EXP(-tt)*COS(2*tt)) -> 0.05682916481 | E28: =EXP(-5*tt)*(COS(2*tt)-SIN(2*tt)) -> -0.023704549 | F28: =EXP(-5*tt)*SIN(2*tt) -> 0.07143768218
B29: 0.5399612373 | C29: =EXP(-5*tt)*(SIN(2*tt)-tt/2*EXP(-tt)*COS(2*tt)) -> 0.0542959899 | D29: =EXP(-5*tt)*(SIN(2*tt)-1/2*EXP(-tt)*COS(2*tt)) -> 0.05004844589 | E29: =EXP(-5*tt)*(COS(2*tt)-SIN(2*tt)) -> -0.0275948591 | F29: =EXP(-5*tt)*SIN(2*tt) -> 0.05928145919
B30: 0.5890486225 | C30: =EXP(-5*tt)*(SIN(2*tt)-tt/2*EXP(-tt)*COS(2*tt)) -> 0.04529735348 | D30: =EXP(-5*tt)*(SIN(2*tt)-1/2*EXP(-tt)*COS(2*tt)) -> 0.04300291347 | E30: =EXP(-5*tt)*(COS(2*tt)-SIN(2*tt)) -> -0.02846110953 | F30: =EXP(-5*tt)*SIN(2*tt) -> 0.04858615308
B31: 0.6381360078 | C31: =EXP(-5*tt)*(SIN(2*tt)-tt/2*EXP(-tt)*COS(2*tt)) -> 0.0373591016 | D31: =EXP(-5*tt)*(SIN(2*tt)-1/2*EXP(-tt)*COS(2*tt)) -> 0.03621752303 | E31: =EXP(-5*tt)*(COS(2*tt)-SIN(2*tt)) -> -0.02742880174 | F31: =EXP(-5*tt)*SIN(2*tt) -> 0.03937224024
B32: 0.687223393 | C32: =EXP(-5*tt)*(SIN(2*tt)-tt/2*EXP(-tt)*COS(2*tt)) -> 0.03048559996 | D32: =EXP(-5*tt)*(SIN(2*tt)-1/2*EXP(-tt)*COS(2*tt)) -> 0.02999163513 | E32: =EXP(-5*tt)*(COS(2*tt)-SIN(2*tt)) -> -0.02529107732 | F32: =EXP(-5*tt)*SIN(2*tt) -> 0.0315709247
B33: 0.7363107782 | C33: =EXP(-5*tt)*(SIN(2*tt)-tt/2*EXP(-tt)*COS(2*tt)) -> 0.02462735455 | D33: =EXP(-5*tt)*(SIN(2*tt)-1/2*EXP(-tt)*COS(2*tt)) -> 0.02447150334 | E33: =EXP(-5*tt)*(COS(2*tt)-SIN(2*tt)) -> -0.0225940994 | F33: =EXP(-5*tt)*SIN(2*tt) -> 0.02506254458
B34: 0.7853981634 | C34: =EXP(-5*tt)*(SIN(2*tt)-tt/2*EXP(-tt)*COS(2*tt)) -> 0.01970287299 | D34: =EXP(-5*tt)*(SIN(2*tt)-1/2*EXP(-tt)*COS(2*tt)) -> 0.01970287299 | E34: =EXP(-5*tt)*(COS(2*tt)-SIN(2*tt)) -> -0.01970287299 | F34: =EXP(-5*tt)*SIN(2*tt) -> 0.01970287299
B35: 0.8344855486 | C35: =EXP(-5*tt)*(SIN(2*tt)-tt/2*EXP(-tt)*COS(2*tt)) -> 0.01561422804 | D35: =EXP(-5*tt)*(SIN(2*tt)-1/2*EXP(-tt)*COS(2*tt)) -> 0.01566850721 | E35: =EXP(-5*tt)*(COS(2*tt)-SIN(2*tt)) -> -0.01685147886 | F35: =EXP(-5*tt)*SIN(2*tt) -> 0.01534056507 | I35: =EXP(-6*t) -> 0.4639400211 | J35: =EXP(-6*t)*(t+1) -> 0.5233243438 | K35: =EXP(-5*t)*COS(2*t) -> 0.5101082626 | L35: =EXP(-5*t)*SIN(2*t) -> 0.1335172679 | O35: =EXP(6*t) -> 2.155451038 | P35: =-EXP(6*t)*(t+1) -> -2.431348771 | Q35: =0 -> 0 | R35: =EXP(6*t)*t -> 0.2758977329
B36: 0.8835729338 | C36: =EXP(-5*tt)*(SIN(2*tt)-tt/2*EXP(-tt)*COS(2*tt)) -> 0.0122578269 | D36: =EXP(-5*tt)*(SIN(2*tt)-1/2*EXP(-tt)*COS(2*tt)) -> 0.01231443448 | E36: =EXP(-5*tt)*(COS(2*tt)-SIN(2*tt)) -> -0.01418100898 | F36: =EXP(-5*tt)*SIN(2*tt) -> 0.01182822812 | H36: X= | I36: 0 | J36: =EXP(-6*t) -> 0.4639400211 | K36: =EXP(-5*t)*COS(2*t) -> 0.5101082626 | L36: =EXP(-5*t)*SIN(2*t) -> 0.1335172679 | N36: X-1= | O36: 0 | P36: =EXP(6*t) -> 2.155451038 | Q36: =0 -> 0 | R36: =-EXP(6*t) -> -2.155451038
B37: 0.932660319 | C37: =EXP(-5*tt)*(SIN(2*tt)-tt/2*EXP(-tt)*COS(2*tt)) -> 0.009531580119 | D37: =EXP(-5*tt)*(SIN(2*tt)-1/2*EXP(-tt)*COS(2*tt)) -> 0.009567868683 | E37: =EXP(-5*tt)*(COS(2*tt)-SIN(2*tt)) -> -0.01176789167 | F37: =EXP(-5*tt)*SIN(2*tt) -> 0.009028980406 | I37: 0 | J37: 0 | K37: =EXP(-5*t)*(-COS(2*t)-SIN(2*t)) -> -0.6436255306 | L37: =EXP(-5*t)*(COS(2*t)-SIN(2*t)) -> 0.3765909947 | O37: 0 | P37: 0 | Q37: =-EXP(5*t)*SIN(2*t) -> -0.4802135098 | R37: =EXP(5*t)*(COS(2*t)-SIN(2*t)) -> 1.354462132
B38: 0.9817477042 | C38: =EXP(-5*tt)*(SIN(2*tt)-tt/2*EXP(-tt)*COS(2*tt)) -> 0.007339410737 | D38: =EXP(-5*tt)*(SIN(2*tt)-1/2*EXP(-tt)*COS(2*tt)) -> 0.0073490695 | E38: =EXP(-5*tt)*(COS(2*tt)-SIN(2*tt)) -> -0.009644779226 | F38: =EXP(-5*tt)*SIN(2*tt) -> 0.006819888794 | I38: 0 | J38: 0 | K38: =EXP(-5*t)*COS(2*t) -> 0.5101082626 | L38: =EXP(-5*t)*SIN(2*t) -> 0.1335172679 | O38: 0 | P38: 0 | Q38: =EXP(5*t)*COS(2*t) -> 1.834675642 | R38: =EXP(5*t)*(COS(2*t)+SIN(2*t)) -> 2.314889152
B39: 1.030835089 | C39: =EXP(-5*tt)*(SIN(2*tt)-tt/2*EXP(-tt)*COS(2*tt)) -> 0.005593836719 | D39: =EXP(-5*tt)*(SIN(2*tt)-1/2*EXP(-tt)*COS(2*tt)) -> 0.005578864511 | E39: =EXP(-5*tt)*(COS(2*tt)-SIN(2*tt)) -> -0.007815736391 | F39: =EXP(-5*tt)*SIN(2*tt) -> 0.005093307053
B40: 1.079922475 | C40: =EXP(-5*tt)*(SIN(2*tt)-tt/2*EXP(-tt)*COS(2*tt)) -> 0.004217192186 | D40: =EXP(-5*tt)*(SIN(2*tt)-1/2*EXP(-tt)*COS(2*tt)) -> 0.004183123792 | E40: =EXP(-5*tt)*(COS(2*tt)-SIN(2*tt)) -> -0.006267106559 | F40: =EXP(-5*tt)*SIN(2*tt) -> 0.00375685578 | I40: =MMULT(I35:L38,O35:R38) -> 1 | J40: 2.220446049e-16 | K40: 0 | L40: -1.110223025e-16 | N40: Bu X ve X-1 matrisleri sağlama yapmak gerekiyorsa kullanılmalı.
B41: 1.12900986 | C41: =EXP(-5*tt)*(SIN(2*tt)-tt/2*EXP(-tt)*COS(2*tt)) -> 0.003141917246 | D41: =EXP(-5*tt)*(SIN(2*tt)-1/2*EXP(-tt)*COS(2*tt)) -> 0.003095142119 | E41: =EXP(-5*tt)*(COS(2*tt)-SIN(2*tt)) -> -0.004975135795 | F41: =EXP(-5*tt)*SIN(2*tt) -> 0.002732571951 | H41: X.X-1= | I41: 0 | J41: 1 | K41: 0 | L41: -1.110223025e-16
B42: 1.178097245 | C42: =EXP(-5*tt)*(SIN(2*tt)-tt/2*EXP(-tt)*COS(2*tt)) -> 0.002310238227 | D42: =EXP(-5*tt)*(SIN(2*tt)-1/2*EXP(-tt)*COS(2*tt)) -> 0.002256625807 | E42: =EXP(-5*tt)*(COS(2*tt)-SIN(2*tt)) -> -0.003911193787 | F42: =EXP(-5*tt)*SIN(2*tt) -> 0.001955596894 | I42: 0 | J42: 0 | K42: 1 | L42: 1.110223025e-16
B43: 1.22718463 | C43: =EXP(-5*tt)*(SIN(2*tt)-tt/2*EXP(-tt)*COS(2*tt)) -> 0.001673474815 | D43: =EXP(-5*tt)*(SIN(2*tt)-1/2*EXP(-tt)*COS(2*tt)) -> 0.001617784812 | E43: =EXP(-5*tt)*(COS(2*tt)-SIN(2*tt)) -> -0.003045237253 | F43: =EXP(-5*tt)*SIN(2*tt) -> 0.001372653781 | I43: 0 | J43: 0 | K43: 0 | L43: 1
B44: 1.276272016 | C44: =EXP(-5*tt)*(SIN(2*tt)-tt/2*EXP(-tt)*COS(2*tt)) -> 0.001191144036 | D44: =EXP(-5*tt)*(SIN(2*tt)-1/2*EXP(-tt)*COS(2*tt)) -> 0.00113688327 | E44: =EXP(-5*tt)*(COS(2*tt)-SIN(2*tt)) -> -0.002348007439 | F44: =EXP(-5*tt)*SIN(2*tt) -> 0.0009404798602
B45: 1.325359401 | C45: =EXP(-5*tt)*(SIN(2*tt)-tt/2*EXP(-tt)*COS(2*tt)) -> 0.0008299799003 | D45: =EXP(-5*tt)*(SIN(2*tt)-1/2*EXP(-tt)*COS(2*tt)) -> 0.0007794922066 | E45: =EXP(-5*tt)*(COS(2*tt)-SIN(2*tt)) -> -0.001792332118 | F45: =EXP(-5*tt)*SIN(2*tt) -> 0.000624317057
B46: 1.374446786 | C46: =EXP(-5*tt)*(SIN(2*tt)-tt/2*EXP(-tt)*COS(2*tt)) -> 0.0005629487773 | D46: =EXP(-5*tt)*(SIN(2*tt)-1/2*EXP(-tt)*COS(2*tt)) -> 0.0005176081496 | E46: =EXP(-5*tt)*(COS(2*tt)-SIN(2*tt)) -> -0.00135380798 | F46: =EXP(-5*tt)*SIN(2*tt) -> 0.0003965211769 | I46: =EXP(-6*tp) -> 0.4611647152 | J46: =EXP(-6*tp)*(tp+1) -> 0.5206549635 | K46: =EXP(-5*tp)*COS(2*tp) -> 0.5072973694 | L46: =EXP(-5*tp)*SIN(2*tp) -> 0.1338662096 | O46: =EXP(-6*tm) -> 0.4667320289 | P46: =EXP(-6*tm)*(tm+1) -> 0.5260069965 | Q46: =EXP(-5*tm)*COS(2*tm) -> 0.5129325385 | R46: =EXP(-5*tm)*SIN(2*tm) -> 0.1331609279
B47: 1.423534171 | C47: =EXP(-5*tt)*(SIN(2*tt)-tt/2*EXP(-tt)*COS(2*tt)) -> 0.0003683117556 | D47: =EXP(-5*tt)*(SIN(2*tt)-1/2*EXP(-tt)*COS(2*tt)) -> 0.0003287436636 | E47: =EXP(-5*tt)*(COS(2*tt)-SIN(2*tt)) -> -0.001011066301 | F47: =EXP(-5*tt)*SIN(2*tt) -> 0.0002353200519 | H47: X(t+dt)= | I47: 0 | J47: =EXP(-6*tp) -> 0.4611647152 | K47: =EXP(-5*tp)*COS(2*tp) -> 0.5072973694 | L47: =EXP(-5*tp)*SIN(2*tp) -> 0.1338662096 | N47: X(t-dt)= | O47: 0 | P47: =EXP(-6*tm) -> 0.4667320289 | Q47: =EXP(-5*tm)*COS(2*tm) -> 0.5129325385 | R47: =EXP(-5*tm)*SIN(2*tm) -> 0.1331609279
B48: 1.472621556 | C48: =EXP(-5*tt)*(SIN(2*tt)-tt/2*EXP(-tt)*COS(2*tt)) -> 0.0002287642363 | D48: =EXP(-5*tt)*(SIN(2*tt)-1/2*EXP(-tt)*COS(2*tt)) -> 0.0001950549953 | E48: =EXP(-5*tt)*(COS(2*tt)-SIN(2*tt)) -> -0.0007457689545 | F48: =EXP(-5*tt)*SIN(2*tt) -> 0.0001237310351 | I48: 0 | J48: 0 | K48: =EXP(-5*tp)*(-COS(2*tp)-SIN(2*tp)) -> -0.641163579 | L48: =EXP(-5*tp)*(COS(2*tp)-SIN(2*tp)) -> 0.3734311599 | O48: 0 | P48: 0 | Q48: =EXP(-5*tm)*(-COS(2*tm)-SIN(2*tm)) -> -0.6460934664 | R48: =EXP(-5*tm)*(COS(2*tm)-SIN(2*tm)) -> 0.3797716106
B49: 1.521708942 | C49: =EXP(-5*tt)*(SIN(2*tt)-tt/2*EXP(-tt)*COS(2*tt)) -> 0.0001306680703 | D49: =EXP(-5*tt)*(SIN(2*tt)-1/2*EXP(-tt)*COS(2*tt)) -> 0.0001025436741 | E49: =EXP(-5*tt)*(COS(2*tt)-SIN(2*tt)) -> -0.0005424395947 | F49: =EXP(-5*tt)*SIN(2*tt) -> 4.863546201e-05 | I49: 0 | J49: 0 | K49: =EXP(-5*tp)*COS(2*tp) -> 0.5072973694 | L49: =EXP(-5*tp)*SIN(2*tp) -> 0.1338662096 | O49: 0 | P49: 0 | Q49: =EXP(-5*tm)*COS(2*tm) -> 0.5129325385 | R49: =EXP(-5*tm)*SIN(2*tm) -> 0.1331609279
B50: 1.570796327 | C50: =EXP(-5*tt)*(SIN(2*tt)-tt/2*EXP(-tt)*COS(2*tt)) -> 6.338125289e-05 | D50: =EXP(-5*tt)*(SIN(2*tt)-1/2*EXP(-tt)*COS(2*tt)) -> 4.034975879e-05 | E50: =EXP(-5*tt)*(COS(2*tt)-SIN(2*tt)) -> -0.0003882032039 | F50: =EXP(-5*tt)*SIN(2*tt) -> -8.144236149e-19
B51: =B50+PI()/64 -> 1.619883712 | C51: =EXP(-5*tt)*(SIN(2*tt)-tt/2*EXP(-tt)*COS(2*tt)) -> 1.868338192e-05 | D51: =EXP(-5*tt)*(SIN(2*tt)-1/2*EXP(-tt)*COS(2*tt)) -> 1.418938175e-07 | E51: =EXP(-5*tt)*(COS(2*tt)-SIN(2*tt)) -> -0.0002724838628 | F51: =EXP(-5*tt)*SIN(2*tt) -> -2.976934235e-05 | I51: =(I46-O46)/2/$E$1 -> -2.783656828 | J51: -2.67601653 | K51: -2.817584535 | L51: 0.3526408119 | O51: =MMULT(C11:F14,I35:L38) -> -2.783640127 | P51: -2.676006042 | Q51: -2.817575849 | R51: 0.3526301858
B52: 1.668971097 | C52: =EXP(-5*tt)*(SIN(2*tt)-tt/2*EXP(-tt)*COS(2*tt)) -> -9.709145507e-06 | D52: =EXP(-5*tt)*(SIN(2*tt)-1/2*EXP(-tt)*COS(2*tt)) -> -2.439846478e-05 | E52: =EXP(-5*tt)*(COS(2*tt)-SIN(2*tt)) -> -0.0001866935339 | F52: =EXP(-5*tt)*SIN(2*tt) -> -4.635654239e-05 | H52: dX/dt= | I52: 0 | J52: -2.783656828 | K52: -2.817584535 | L52: 0.3526408119 | N52: A.X= | O52: 0 | P52: -2.783640127 | Q52: -2.817575849 | R52: 0.3526301858
B53: 1.718058482 | C53: =EXP(-5*tt)*(SIN(2*tt)-tt/2*EXP(-tt)*COS(2*tt)) -> -2.654660223e-05 | D53: =EXP(-5*tt)*(SIN(2*tt)-1/2*EXP(-tt)*COS(2*tt)) -> -3.800581467e-05 | E53: =EXP(-5*tt)*(COS(2*tt)-SIN(2*tt)) -> -0.0001239324334 | F53: =EXP(-5*tt)*SIN(2*tt) -> -5.396442073e-05 | I53: 0 | J53: 0 | K53: 2.464943723 | L53: -3.170225347 | O53: 0 | P53: 0 | Q53: 2.464945663 | R53: -3.170206035
B54: 1.767145868 | C54: =EXP(-5*tt)*(SIN(2*tt)-tt/2*EXP(-tt)*COS(2*tt)) -> -3.537754189e-05 | D54: =EXP(-5*tt)*(SIN(2*tt)-1/2*EXP(-tt)*COS(2*tt)) -> -4.418180689e-05 | E54: =EXP(-5*tt)*(COS(2*tt)-SIN(2*tt)) -> -7.87129453e-05 | F54: =EXP(-5*tt)*SIN(2*tt) -> -5.565845739e-05 | I54: 0 | J54: 0 | K54: -2.817584535 | L54: 0.3526408119 | O54: 0 | P54: 0 | Q54: -2.817575849 | R54: 0.3526301858
B55: 1.816233253 | C55: =EXP(-5*tt)*(SIN(2*tt)-tt/2*EXP(-tt)*COS(2*tt)) -> -3.881822024e-05 | D55: =EXP(-5*tt)*(SIN(2*tt)-1/2*EXP(-tt)*COS(2*tt)) -> -4.547913114e-05 | E55: =EXP(-5*tt)*(COS(2*tt)-SIN(2*tt)) -> -4.671310247e-05 | F55: =EXP(-5*tt)*SIN(2*tt) -> -5.363967947e-05
B56: 1.865320638 | C56: =EXP(-5*tt)*(SIN(2*tt)-tt/2*EXP(-tt)*COS(2*tt)) -> -3.87691174e-05 | D56: =EXP(-5*tt)*(SIN(2*tt)-1/2*EXP(-tt)*COS(2*tt)) -> -4.372821537e-05 | E56: =EXP(-5*tt)*(COS(2*tt)-SIN(2*tt)) -> -2.456170002e-05 | F56: =EXP(-5*tt)*SIN(2*tt) -> -4.945915225e-05 | L56: Homojen kısmın kontrolü için kırmızı kutular eşleşmeli.
B57: 1.914408023 | C57: =EXP(-5*tt)*(SIN(2*tt)-tt/2*EXP(-tt)*COS(2*tt)) -> -3.658713352e-05 | D57: =EXP(-5*tt)*(SIN(2*tt)-1/2*EXP(-tt)*COS(2*tt)) -> -4.021619525e-05 | E57: =EXP(-5*tt)*(COS(2*tt)-SIN(2*tt)) -> -9.654567482e-06 | F57: =EXP(-5*tt)*SIN(2*tt) -> -4.418495059e-05
B58: 1.963495408 | C58: =EXP(-5*tt)*(SIN(2*tt)-tt/2*EXP(-tt)*COS(2*tt)) -> -3.322113337e-05 | D58: =EXP(-5*tt)*(SIN(2*tt)-1/2*EXP(-tt)*COS(2*tt)) -> -3.582664688e-05 | E58: =EXP(-5*tt)*(COS(2*tt)-SIN(2*tt)) -> 2.23839047e-19 | F58: =EXP(-5*tt)*SIN(2*tt) -> -3.853087721e-05
B59: 2.012582794 | C59: =EXP(-5*tt)*(SIN(2*tt)-tt/2*EXP(-tt)*COS(2*tt)) -> -2.931755377e-05 | D59: =EXP(-5*tt)*(SIN(2*tt)-1/2*EXP(-tt)*COS(2*tt)) -> -3.114749657e-05 | E59: =EXP(-5*tt)*(COS(2*tt)-SIN(2*tt)) -> 5.909476598e-06 | F59: =EXP(-5*tt)*SIN(2*tt) -> -3.29546997e-05
B60: 2.061670179 | C60: =EXP(-5*tt)*(SIN(2*tt)-tt/2*EXP(-tt)*COS(2*tt)) -> -2.53018335e-05 | D60: =EXP(-5*tt)*(SIN(2*tt)-1/2*EXP(-tt)*COS(2*tt)) -> -2.65534368e-05 | E60: =EXP(-5*tt)*(COS(2*tt)-SIN(2*tt)) -> 9.202181871e-06 | F60: =EXP(-5*tt)*SIN(2*tt) -> -2.77323371e-05
B61: 2.110757564 | C61: =EXP(-5*tt)*(SIN(2*tt)-tt/2*EXP(-tt)*COS(2*tt)) -> -2.144052752e-05 | D61: =EXP(-5*tt)*(SIN(2*tt)-1/2*EXP(-tt)*COS(2*tt)) -> -2.226815267e-05 | E61: =EXP(-5*tt)*(COS(2*tt)-SIN(2*tt)) -> 1.071241271e-05 | F61: =EXP(-5*tt)*SIN(2*tt) -> -2.301325239e-05
B62: 2.159844949 | C62: =EXP(-5*tt)*(SIN(2*tt)-tt/2*EXP(-tt)*COS(2*tt)) -> -1.788815031e-05 | D62: =EXP(-5*tt)*(SIN(2*tt)-1/2*EXP(-tt)*COS(2*tt)) -> -1.841073555e-05 | E62: =EXP(-5*tt)*(COS(2*tt)-SIN(2*tt)) -> 1.104869391e-05 | F62: =EXP(-5*tt)*SIN(2*tt) -> -1.886130029e-05
B63: 2.208932335 | C63: =EXP(-5*tt)*(SIN(2*tt)-tt/2*EXP(-tt)*COS(2*tt)) -> -1.472207063e-05 | D63: =EXP(-5*tt)*(SIN(2*tt)-1/2*EXP(-tt)*COS(2*tt)) -> -1.502984565e-05 | E63: =EXP(-5*tt)*(COS(2*tt)-SIN(2*tt)) -> 1.064794871e-05 | F63: =EXP(-5*tt)*SIN(2*tt) -> -1.528442981e-05
B64: 2.25801972 | C64: =EXP(-5*tt)*(SIN(2*tt)-tt/2*EXP(-tt)*COS(2*tt)) -> -1.196815423e-05 | D64: =EXP(-5*tt)*(SIN(2*tt)-1/2*EXP(-tt)*COS(2*tt)) -> -1.212848621e-05 | E64: =EXP(-5*tt)*(COS(2*tt)-SIN(2*tt)) -> 9.818077248e-06 | F64: =EXP(-5*tt)*SIN(2*tt) -> -1.225593412e-05
B65: 2.307107105 | C65: =EXP(-5*tt)*(SIN(2*tt)-tt/2*EXP(-tt)*COS(2*tt)) -> -9.619318611e-06 | D65: =EXP(-5*tt)*(SIN(2*tt)-1/2*EXP(-tt)*COS(2*tt)) -> -9.681663363e-06 | E65: =EXP(-5*tt)*(COS(2*tt)-SIN(2*tt)) -> 8.771101775e-06 | F65: =EXP(-5*tt)*SIN(2*tt) -> -9.729360106e-06
B66: 2.35619449 | C66: =EXP(-5*tt)*(SIN(2*tt)-tt/2*EXP(-tt)*COS(2*tt)) -> -7.64871842e-06 | D66: =EXP(-5*tt)*(SIN(2*tt)-1/2*EXP(-tt)*COS(2*tt)) -> -7.64871842e-06 | E66: =EXP(-5*tt)*(COS(2*tt)-SIN(2*tt)) -> 7.64871842e-06 | F66: =EXP(-5*tt)*SIN(2*tt) -> -7.64871842e-06
B67: 2.405281875 | C67: =EXP(-5*tt)*(SIN(2*tt)-tt/2*EXP(-tt)*COS(2*tt)) -> -6.018911748e-06 | D67: =EXP(-5*tt)*(SIN(2*tt)-1/2*EXP(-tt)*COS(2*tt)) -> -5.981721283e-06 | E67: =EXP(-5*tt)*(COS(2*tt)-SIN(2*tt)) -> 6.541798082e-06 | F67: =EXP(-5*tt)*SIN(2*tt) -> -5.955256511e-06
B68: 2.454369261 | C68: =EXP(-5*tt)*(SIN(2*tt)-tt/2*EXP(-tt)*COS(2*tt)) -> -4.688057203e-06 | D68: =EXP(-5*tt)*(SIN(2*tt)-1/2*EXP(-tt)*COS(2*tt)) -> -4.630992671e-06 | E68: =EXP(-5*tt)*(COS(2*tt)-SIN(2*tt)) -> 5.50511312e-06 | F68: =EXP(-5*tt)*SIN(2*tt) -> -4.591756053e-06
B69: 2.503456646 | C69: =EXP(-5*tt)*(SIN(2*tt)-tt/2*EXP(-tt)*COS(2*tt)) -> -3.613949505e-06 | D69: =EXP(-5*tt)*(SIN(2*tt)-1/2*EXP(-tt)*COS(2*tt)) -> -3.548567146e-06 | E69: =EXP(-5*tt)*(COS(2*tt)-SIN(2*tt)) -> 4.568333249e-06 | F69: =EXP(-5*tt)*SIN(2*tt) -> -3.505079122e-06
B70: 2.552544031 | C70: =EXP(-5*tt)*(SIN(2*tt)-tt/2*EXP(-tt)*COS(2*tt)) -> -2.756508123e-06 | D70: =EXP(-5*tt)*(SIN(2*tt)-1/2*EXP(-tt)*COS(2*tt)) -> -2.690207308e-06 | E70: =EXP(-5*tt)*(COS(2*tt)-SIN(2*tt)) -> 3.744134197e-06 | F70: =EXP(-5*tt)*SIN(2*tt) -> -2.64750268e-06
B71: 2.601631416 | C71: =EXP(-5*tt)*(SIN(2*tt)-tt/2*EXP(-tt)*COS(2*tt)) -> -2.079181099e-06 | D71: =EXP(-5*tt)*(SIN(2*tt)-1/2*EXP(-tt)*COS(2*tt)) -> -2.016422369e-06 | E71: =EXP(-5*tt)*(COS(2*tt)-SIN(2*tt)) -> 3.034093908e-06 | F71: =EXP(-5*tt)*SIN(2*tt) -> -1.977238117e-06
B72: 2.650718801 | C72: =EXP(-5*tt)*(SIN(2*tt)-tt/2*EXP(-tt)*COS(2*tt)) -> -1.549607178e-06 | D72: =EXP(-5*tt)*(SIN(2*tt)-1/2*EXP(-tt)*COS(2*tt)) -> -1.492823074e-06 | E72: =EXP(-5*tt)*(COS(2*tt)-SIN(2*tt)) -> 2.432910845e-06 | F72: =EXP(-5*tt)*SIN(2*tt) -> -1.458423451e-06
B73: 2.699806187 | C73: =EXP(-5*tt)*(SIN(2*tt)-tt/2*EXP(-tt)*COS(2*tt)) -> -1.139787457e-06 | D73: =EXP(-5*tt)*(SIN(2*tt)-1/2*EXP(-tt)*COS(2*tt)) -> -1.090052424e-06 | E73: =EXP(-5*tt)*(COS(2*tt)-SIN(2*tt)) -> 1.931363656e-06 | F73: =EXP(-5*tt)*SIN(2*tt) -> -1.060793186e-06
B74: 2.748893572 | C74: =EXP(-5*tt)*(SIN(2*tt)-tt/2*EXP(-tt)*COS(2*tt)) -> -8.259475435e-07 | D74: =EXP(-5*tt)*(SIN(2*tt)-1/2*EXP(-tt)*COS(2*tt)) -> -7.834618677e-07 | E74: =EXP(-5*tt)*(COS(2*tt)-SIN(2*tt)) -> 1.518337959e-06 | F74: =EXP(-5*tt)*SIN(2*tt) -> -7.591689797e-07
B75: 2.797980957 | C75: =EXP(-5*tt)*(SIN(2*tt)-tt/2*EXP(-tt)*COS(2*tt)) -> -5.882181317e-07 | D75: =EXP(-5*tt)*(SIN(2*tt)-1/2*EXP(-tt)*COS(2*tt)) -> -5.526505516e-07 | E75: =EXP(-5*tt)*(COS(2*tt)-SIN(2*tt)) -> 1.182170858e-06 | F75: =EXP(-5*tt)*SIN(2*tt) -> -5.328685957e-07
B76: 2.847068342 | C76: =EXP(-5*tt)*(SIN(2*tt)-tt/2*EXP(-tt)*COS(2*tt)) -> -4.102223614e-07 | D76: =EXP(-5*tt)*(SIN(2*tt)-1/2*EXP(-tt)*COS(2*tt)) -> -3.809469554e-07 | E76: =EXP(-5*tt)*(COS(2*tt)-SIN(2*tt)) -> 9.115040105e-07 | F76: =EXP(-5*tt)*SIN(2*tt) -> -3.650972949e-07
B77: 2.896155728 | C77: =EXP(-5*tt)*(SIN(2*tt)-tt/2*EXP(-tt)*COS(2*tt)) -> -2.786291648e-07 | D77: =EXP(-5*tt)*(SIN(2*tt)-1/2*EXP(-tt)*COS(2*tt)) -> -2.548844415e-07 | E77: =EXP(-5*tt)*(COS(2*tt)-SIN(2*tt)) -> 6.957890707e-07 | F77: =EXP(-5*tt)*SIN(2*tt) -> -2.423618818e-07
B78: 2.945243113 | C78: =EXP(-5*tt)*(SIN(2*tt)-tt/2*EXP(-tt)*COS(2*tt)) -> -1.827107064e-07 | D78: =EXP(-5*tt)*(SIN(2*tt)-1/2*EXP(-tt)*COS(2*tt)) -> -1.637024516e-07 | E78: =EXP(-5*tt)*(COS(2*tt)-SIN(2*tt)) -> 5.255525954e-07 | F78: =EXP(-5*tt)*SIN(2*tt) -> -1.539307913e-07
B79: 2.994330498 | C79: =EXP(-5*tt)*(SIN(2*tt)-tt/2*EXP(-tt)*COS(2*tt)) -> -1.139269755e-07 | D79: =EXP(-5*tt)*(SIN(2*tt)-1/2*EXP(-tt)*COS(2*tt)) -> -9.889123848e-08 | E79: =EXP(-5*tt)*(COS(2*tt)-SIN(2*tt)) -> 3.924991773e-07 | F79: =EXP(-5*tt)*SIN(2*tt) -> -9.135199808e-08
B80: 3.043417883 | C80: =EXP(-5*tt)*(SIN(2*tt)-tt/2*EXP(-tt)*COS(2*tt)) -> -6.555011683e-08 | D80: =EXP(-5*tt)*(SIN(2*tt)-1/2*EXP(-tt)*COS(2*tt)) -> -5.378859344e-08 | E80: =EXP(-5*tt)*(COS(2*tt)-SIN(2*tt)) -> 2.895098975e-07 | F80: =EXP(-5*tt)*SIN(2*tt) -> -4.803278427e-08
B81: 3.092505268 | C81: =EXP(-5*tt)*(SIN(2*tt)-tt/2*EXP(-tt)*COS(2*tt)) -> -3.233397414e-08 | D81: =EXP(-5*tt)*(SIN(2*tt)-1/2*EXP(-tt)*COS(2*tt)) -> -2.323080888e-08 | E81: =EXP(-5*tt)*(COS(2*tt)-SIN(2*tt)) -> 2.105767886e-07 | F81: =EXP(-5*tt)*SIN(2*tt) -> -1.888044218e-08
B82: 3.141592654 | C82: =EXP(-5*tt)*(SIN(2*tt)-tt/2*EXP(-tt)*COS(2*tt)) -> -1.022967306e-08 | D82: =EXP(-5*tt)*(SIN(2*tt)-1/2*EXP(-tt)*COS(2*tt)) -> -3.256206068e-09 | E82: =EXP(-5*tt)*(COS(2*tt)-SIN(2*tt)) -> 1.507017275e-07 | F82: =EXP(-5*tt)*SIN(2*tt) -> -7.061765088e-22
B83: =B82+PI()/64 -> 3.190680039 | C83: =EXP(-5*tt)*(SIN(2*tt)-tt/2*EXP(-tt)*COS(2*tt)) -> 3.854819357e-09 | D83: =EXP(-5*tt)*(SIN(2*tt)-1/2*EXP(-tt)*COS(2*tt)) -> 9.142731749e-09 | E83: =EXP(-5*tt)*(COS(2*tt)-SIN(2*tt)) -> 1.057791086e-07 | F83: =EXP(-5*tt)*SIN(2*tt) -> 1.155655408e-08
B84: 3.239767424 | C84: =EXP(-5*tt)*(SIN(2*tt)-tt/2*EXP(-tt)*COS(2*tt)) -> 1.225487009e-08 | D84: =EXP(-5*tt)*(SIN(2*tt)-1/2*EXP(-tt)*COS(2*tt)) -> 1.622375201e-08 | E84: =EXP(-5*tt)*(COS(2*tt)-SIN(2*tt)) -> 7.247502801e-08 | F84: =EXP(-5*tt)*SIN(2*tt) -> 1.799575828e-08
B85: 3.288854809 | C85: =EXP(-5*tt)*(SIN(2*tt)-tt/2*EXP(-tt)*COS(2*tt)) -> 1.671360341e-08 | D85: =EXP(-5*tt)*(SIN(2*tt)-1/2*EXP(-tt)*COS(2*tt)) -> 1.966130922e-08 | E85: =EXP(-5*tt)*(COS(2*tt)-SIN(2*tt)) -> 4.811096772e-08 | F85: =EXP(-5*tt)*SIN(2*tt) -> 2.094916102e-08
B86: 3.337942194 | C86: =EXP(-5*tt)*(SIN(2*tt)-tt/2*EXP(-tt)*COS(2*tt)) -> 1.851532241e-08 | D86: =EXP(-5*tt)*(SIN(2*tt)-1/2*EXP(-tt)*COS(2*tt)) -> 2.068063133e-08 | E86: =EXP(-5*tt)*(COS(2*tt)-SIN(2*tt)) -> 3.055661756e-08 | F86: =EXP(-5*tt)*SIN(2*tt) -> 2.160679148e-08
B87: 3.38702958 | C87: =EXP(-5*tt)*(SIN(2*tt)-tt/2*EXP(-tt)*COS(2*tt)) -> 1.859255926e-08 | D87: =EXP(-5*tt)*(SIN(2*tt)-1/2*EXP(-tt)*COS(2*tt)) -> 2.016454312e-08 | E87: =EXP(-5*tt)*(COS(2*tt)-SIN(2*tt)) -> 1.813417604e-08 | F87: =EXP(-5*tt)*SIN(2*tt) -> 2.082309543e-08
B88: 3.436116965 | C88: =EXP(-5*tt)*(SIN(2*tt)-tt/2*EXP(-tt)*COS(2*tt)) -> 1.761105279e-08 | D88: =EXP(-5*tt)*(SIN(2*tt)-1/2*EXP(-tt)*COS(2*tt)) -> 1.873771752e-08 | E88: =EXP(-5*tt)*(COS(2*tt)-SIN(2*tt)) -> 9.534930643e-09 | F88: =EXP(-5*tt)*SIN(2*tt) -> 1.920020137e-08
B89: 3.48520435 | C89: =EXP(-5*tt)*(SIN(2*tt)-tt/2*EXP(-tt)*COS(2*tt)) -> 1.603650984e-08 | D89: =EXP(-5*tt)*(SIN(2*tt)-1/2*EXP(-tt)*COS(2*tt)) -> 1.683246274e-08 | E89: =EXP(-5*tt)*(COS(2*tt)-SIN(2*tt)) -> 3.747934029e-09 | F89: =EXP(-5*tt)*SIN(2*tt) -> 1.715273938e-08
B90: 3.534291735 | C90: =EXP(-5*tt)*(SIN(2*tt)-tt/2*EXP(-tt)*COS(2*tt)) -> 1.41865212e-08 | D90: =EXP(-5*tt)*(SIN(2*tt)-1/2*EXP(-tt)*COS(2*tt)) -> 1.47395799e-08 | E90: =EXP(-5*tt)*(COS(2*tt)-SIN(2*tt)) -> 2.207603597e-22 | F90: =EXP(-5*tt)*SIN(2*tt) -> 1.495780998e-08
B91: 3.583379121 | C91: =EXP(-5*tt)*(SIN(2*tt)-tt/2*EXP(-tt)*COS(2*tt)) -> 1.227051849e-08 | D91: =EXP(-5*tt)*(SIN(2*tt)-1/2*EXP(-tt)*COS(2*tt)) -> 1.264727959e-08 | E91: =EXP(-5*tt)*(COS(2*tt)-SIN(2*tt)) -> -2.294077749e-09 | F91: =EXP(-5*tt)*SIN(2*tt) -> 1.279312001e-08
B92: 3.632466506 | C92: =EXP(-5*tt)*(SIN(2*tt)-tt/2*EXP(-tt)*COS(2*tt)) -> 1.042020129e-08 | D92: =EXP(-5*tt)*(SIN(2*tt)-1/2*EXP(-tt)*COS(2*tt)) -> 1.067064543e-08 | E92: =EXP(-5*tt)*(COS(2*tt)-SIN(2*tt)) -> -3.572316485e-09 | F92: =EXP(-5*tt)*SIN(2*tt) -> 1.076578212e-08
B93: 3.681553891 | C93: =EXP(-5*tt)*(SIN(2*tt)-tt/2*EXP(-tt)*COS(2*tt)) -> 8.712449465e-09 | D93: =EXP(-5*tt)*(SIN(2*tt)-1/2*EXP(-tt)*COS(2*tt)) -> 8.873689123e-09 | E93: =EXP(-5*tt)*(COS(2*tt)-SIN(2*tt)) -> -4.158592937e-09 | F93: =EXP(-5*tt)*SIN(2*tt) -> 8.933818311e-09
B94: 3.730641276 | C94: =EXP(-5*tt)*(SIN(2*tt)-tt/2*EXP(-tt)*COS(2*tt)) -> 7.186369754e-09 | D94: =EXP(-5*tt)*(SIN(2*tt)-1/2*EXP(-tt)*COS(2*tt)) -> 7.285656847e-09 | E94: =EXP(-5*tt)*(COS(2*tt)-SIN(2*tt)) -> -4.289138374e-09 | F94: =EXP(-5*tt)*SIN(2*tt) -> 7.322017204e-09
B95: 3.779728661 | C95: =EXP(-5*tt)*(SIN(2*tt)-tt/2*EXP(-tt)*COS(2*tt)) -> 5.855810782e-09 | D95: =EXP(-5*tt)*(SIN(2*tt)-1/2*EXP(-tt)*COS(2*tt)) -> 5.912919803e-09 | E95: =EXP(-5*tt)*(COS(2*tt)-SIN(2*tt)) -> -4.133567806e-09 | F95: =EXP(-5*tt)*SIN(2*tt) -> 5.933464622e-09
B96: 3.828816047 | C96: =EXP(-5*tt)*(SIN(2*tt)-tt/2*EXP(-tt)*COS(2*tt)) -> 4.718413578e-09 | D96: =EXP(-5*tt)*(SIN(2*tt)-1/2*EXP(-tt)*COS(2*tt)) -> 4.747507907e-09 | E96: =EXP(-5*tt)*(COS(2*tt)-SIN(2*tt)) -> -3.811409044e-09 | F96: =EXP(-5*tt)*SIN(2*tt) -> 4.757792892e-09
B97: 3.877903432 | C97: =EXP(-5*tt)*(SIN(2*tt)-tt/2*EXP(-tt)*COS(2*tt)) -> 3.762042311e-09 | D97: =EXP(-5*tt)*(SIN(2*tt)-1/2*EXP(-tt)*COS(2*tt)) -> 3.773119661e-09 | E97: =EXP(-5*tt)*(COS(2*tt)-SIN(2*tt)) -> -3.404969811e-09 | F97: =EXP(-5*tt)*SIN(2*tt) -> 3.776968765e-09
B98: 3.926990817 | C98: =EXP(-5*tt)*(SIN(2*tt)-tt/2*EXP(-tt)*COS(2*tt)) -> 2.969256997e-09 | D98: =EXP(-5*tt)*(SIN(2*tt)-1/2*EXP(-tt)*COS(2*tt)) -> 2.969256997e-09 | E98: =EXP(-5*tt)*(COS(2*tt)-SIN(2*tt)) -> -2.969256997e-09 | F98: =EXP(-5*tt)*SIN(2*tt) -> 2.969256997e-09
B99: 3.976078202 | C99: =EXP(-5*tt)*(SIN(2*tt)-tt/2*EXP(-tt)*COS(2*tt)) -> 2.320341346e-09 | D99: =EXP(-5*tt)*(SIN(2*tt)-1/2*EXP(-tt)*COS(2*tt)) -> 2.313985352e-09 | E99: =EXP(-5*tt)*(COS(2*tt)-SIN(2*tt)) -> -2.539546975e-09 | F99: =EXP(-5*tt)*SIN(2*tt) -> 2.311849658e-09
B100: 4.025165587 | C100: =EXP(-5*tt)*(SIN(2*tt)-tt/2*EXP(-tt)*COS(2*tt)) -> 1.7952796e-09 | D100: =EXP(-5*tt)*(SIN(2*tt)-1/2*EXP(-tt)*COS(2*tt)) -> 1.785700788e-09 | E100: =EXP(-5*tt)*(COS(2*tt)-SIN(2*tt)) -> -2.137102551e-09 | F100: =EXP(-5*tt)*SIN(2*tt) -> 1.782534411e-09
B101: 4.074252973 | C101: =EXP(-5*tt)*(SIN(2*tt)-tt/2*EXP(-tt)*COS(2*tt)) -> 1.374981383e-09 | D101: =EXP(-5*tt)*(SIN(2*tt)-1/2*EXP(-tt)*COS(2*tt)) -> 1.364192408e-09 | E101: =EXP(-5*tt)*(COS(2*tt)-SIN(2*tt)) -> -1.773441604e-09 | F101: =EXP(-5*tt)*SIN(2*tt) -> 1.360682945e-09
B102: 4.123340358 | C102: =EXP(-5*tt)*(SIN(2*tt)-tt/2*EXP(-tt)*COS(2*tt)) -> 1.041979055e-09 | D102: =EXP(-5*tt)*(SIN(2*tt)-1/2*EXP(-tt)*COS(2*tt)) -> 1.031215266e-09 | E102: =EXP(-5*tt)*(COS(2*tt)-SIN(2*tt)) -> -1.453484891e-09 | F102: =EXP(-5*tt)*SIN(2*tt) -> 1.027769023e-09
B103: 4.172427743 | C103: =EXP(-5*tt)*(SIN(2*tt)-tt/2*EXP(-tt)*COS(2*tt)) -> 7.807640153e-10 | D103: =EXP(-5*tt)*(SIN(2*tt)-1/2*EXP(-tt)*COS(2*tt)) -> 7.70732322e-10 | E103: =EXP(-5*tt)*(COS(2*tt)-SIN(2*tt)) -> -1.177844976e-09 | F103: =EXP(-5*tt)*SIN(2*tt) -> 7.675701718e-10
B104: 4.221515128 | C104: =EXP(-5*tt)*(SIN(2*tt)-tt/2*EXP(-tt)*COS(2*tt)) -> 5.778837214e-10 | D104: =EXP(-5*tt)*(SIN(2*tt)-1/2*EXP(-tt)*COS(2*tt)) -> 5.689406892e-10 | E104: =EXP(-5*tt)*(COS(2*tt)-SIN(2*tt)) -> -9.444637851e-10 | F104: =EXP(-5*tt)*SIN(2*tt) -> 5.661646562e-10
B105: 4.270602513 | C105: =EXP(-5*tt)*(SIN(2*tt)-tt/2*EXP(-tt)*COS(2*tt)) -> 4.218870874e-10 | D105: =EXP(-5*tt)*(SIN(2*tt)-1/2*EXP(-tt)*COS(2*tt)) -> 4.1416452e-10 | E105: =EXP(-5*tt)*(COS(2*tt)-SIN(2*tt)) -> -7.497615591e-10 | F105: =EXP(-5*tt)*SIN(2*tt) -> 4.118033136e-10
B106: 4.319689899 | C106: =EXP(-5*tt)*(SIN(2*tt)-tt/2*EXP(-tt)*COS(2*tt)) -> 3.031802555e-10 | D106: =EXP(-5*tt)*(SIN(2*tt)-1/2*EXP(-tt)*COS(2*tt)) -> 2.966722546e-10 | E106: =EXP(-5*tt)*(COS(2*tt)-SIN(2*tt)) -> -5.894236604e-10 | F106: =EXP(-5*tt)*SIN(2*tt) -> 2.947118302e-10

Sheet Sheet2

Sheet Sheet3
